fUSD/lending_fUSD_20240625
["ID","MTS","AMOUNT","RATE_DAILY","PERIOD"]
[330399597,1719347451800,-500.0,0.00019452,2]
[330399598,1719347451809,-500.0,0.00019452,2]
[330399599,1719347451819,-500.0,0.00019452,2]
[330399600,1719347451829,-500.0,0.00019452,2]
[330399601,1719347451839,-2569.22,0.00019452,2]
[330399602,1719347451849,-1531.62,0.00019452,2]
[330399603,1719347451859,-500.0,0.00019452,2]
[330399604,1719347451869,-500.0,0.00019452,2]
[330399605,1719347451880,-500.0,0.00019452,2]
[330399606,1719347451893,-979.44,0.00019452,2]
[330399607,1719347451902,-605.78,0.00019452,2]
[330399608,1719347451912,-500.0,0.00019452,2]
[330399609,1719347451922,-500.0,0.00019452,2]
[330399610,1719347451931,-500.0,0.00019452,2]
[330399611,1719347451941,-500.0,0.00019452,2]
[330399612,1719347451951,-500.0,0.00019452,2]
[330399613,1719347451960,-1664.28,0.00019452,2]
[330399614,1719347451970,-500.0,0.00019452,2]
[330399615,1719347451980,-500.0,0.00019452,2]
[330399616,1719347451990,-500.0,0.00019452,2]
[330399617,1719347451999,-500.0,0.00019452,2]
[330399618,1719347452009,-500.0,0.00019452,2]
[330399619,1719347452019,-1518.01,0.00019452,2]
[330399620,1719347452028,-2412.59,0.00019452,2]
[330399621,1719347452038,-500.0,0.00019452,2]
[330399622,1719347452047,-500.0,0.00019452,2]
[330399623,1719347452056,-500.0,0.00019452,2]
[330399624,1719347452066,-778.7,0.00019452,2]
[330399625,1719347452075,-500.0,0.00019452,2]
[330399626,1719347452085,-500.0,0.00019452,2]
[330399627,1719347452095,-500.0,0.00019452,2]
[330399628,1719347452104,-2603.98,0.00019452,2]
[330399629,1719347452113,-500.0,0.00019452,2]
[330399630,1719347452123,-500.0,0.00019452,2]
[330399631,1719347452132,-1162.42,0.00019452,2]
[330399632,1719347452142,-996.48,0.00019452,2]
[330399633,1719347452151,-500.0,0.00019452,2]
[330399634,1719347452161,-500.0,0.00019452,2]
[330399635,1719347452171,-500.0,0.00019452,2]
[330399636,1719347452180,-500.0,0.00019452,2]
[330399637,1719347452189,-500.0,0.00019452,2]
[330399638,1719347452199,-500.0,0.00019452,2]
[330399639,1719347452209,-830.7,0.00019452,2]
[330399640,1719347452219,-500.0,0.00019452,2]
[330399641,1719347452229,-1255.0,0.00019452,2]
[330399642,1719347452238,-500.0,0.00019452,2]
[330399643,1719347452247,-500.0,0.00019452,2]
[330399644,1719347452256,-500.0,0.00019452,2]
[330399645,1719347452266,-765.55,0.00019452,2]
[330399646,1719347452275,-1066.43,0.00019452,2]
[330399647,1719347452284,-500.0,0.00019452,2]
[330399648,1719347452294,-594.15,0.00019452,2]
[330399649,1719347452304,-500.0,0.00019452,2]
[330399650,1719347452318,-568.28,0.00019452,2]
[330399651,1719347452328,-801.62,0.00019452,2]
[330399652,1719347452337,-500.0,0.00019452,2]
[330399653,1719347452347,-500.0,0.00019452,2]
[330399654,1719347452357,-696.68,0.00019452,2]
[330399655,1719347452367,-933.84,0.00019452,2]
[330399656,1719347452376,-500.0,0.00019452,2]
[330399657,1719347452385,-500.0,0.00019452,2]
[330399658,1719347452396,-500.0,0.00019452,2]
[330399659,1719347452407,-500.0,0.00019452,2]
[330399660,1719347452417,-1273.66,0.00019452,2]
[330399661,1719347452426,-500.0,0.00019452,2]
[330399662,1719347452436,-836.87,0.00019452,2]
[330399663,1719347452446,-1140.14,0.00019452,2]
[330399664,1719347452455,-504.52,0.00019452,2]
[330399665,1719347452464,-856.76,0.00019452,2]
[330399666,1719347452474,-599.18,0.00019452,2]
[330399667,1719347452484,-500.0,0.00019452,2]
[330399668,1719347452493,-500.0,0.00019452,2]
[330399669,1719347452503,-975.96,0.00019452,2]
[330399670,1719347452512,-500.0,0.00019452,2]
[330399671,1719347452522,-500.0,0.00019452,2]
[330399672,1719347452532,-500.0,0.00019452,2]
[330399673,1719347452541,-500.0,0.00019452,2]
[330399674,1719347452551,-500.0,0.00019452,2]
[330399675,1719347452560,-500.0,0.00019452,2]
[330399676,1719347452570,-500.0,0.00019452,2]
[330399677,1719347452579,-500.0,0.00019452,2]
[330399678,1719347452588,-500.0,0.00019452,2]
[330399679,1719347452598,-1026.11,0.00019452,2]
[330399680,1719347452607,-500.0,0.00019452,2]
[330399681,1719347452617,-1000.3,0.00019452,2]
[330399682,1719347452627,-2569.75,0.00019452,2]
[330399683,1719347452636,-500.0,0.00019452,2]
[330399684,1719347452646,-500.0,0.00019452,2]
[330399685,1719347452656,-500.0,0.00019452,2]
[330399686,1719347452665,-1317.82,0.00019452,2]
[330399687,1719347452674,-500.0,0.00019452,2]
[330399688,1719347452684,-1683.51,0.00019452,2]
[330399689,1719347452694,-1570.66,0.00019452,2]
[330399690,1719347452703,-500.0,0.00019452,2]
[330399691,1719347452713,-741.14,0.00019452,2]
[330399692,1719347452723,-1929.86,0.00019452,2]
[330399693,1719347452732,-500.0,0.00019452,2]
[330399694,1719347452742,-1673.32,0.00019452,2]
[330399695,1719347452752,-500.0,0.00019452,2]
[330399696,1719347452761,-787.19,0.00019452,2]
[330399697,1719347452772,-990.64,0.00019452,2]
[330399698,1719347452781,-1861.12,0.00019452,2]
[330399699,1719347452791,-750.75,0.00019452,2]
[330399700,1719347452802,-500.0,0.00019452,2]
[330399701,1719347452811,-615.92,0.00019452,2]
[330399702,1719347452821,-500.0,0.00019452,2]
[330399703,1719347452831,-500.0,0.00019452,2]
[330399704,1719347452842,-983.57,0.00019452,2]
[330399705,1719347452851,-1547.98,0.00019452,2]
[330399706,1719347452861,-500.0,0.00019452,2]
[330399707,1719347452871,-2643.6,0.00019452,2]
[330399708,1719347452881,-500.0,0.00019452,2]
[330399709,1719347452893,-500.0,0.00019452,2]
[330399710,1719347452902,-500.0,0.00019452,2]
[330399711,1719347452912,-1433.41,0.00019452,2]
[330399712,1719347452922,-500.0,0.00019452,2]
[330399713,1719347452932,-500.0,0.00019452,2]
[330399714,1719347452942,-500.0,0.00019452,2]
[330399715,1719347452951,-1672.98,0.00019452,2]
[330399716,1719347452960,-500.0,0.00019452,2]
[330399717,1719347452971,-1198.39,0.00019452,2]
[330399718,1719347452980,-500.0,0.00019452,2]
[330399719,1719347452990,-905.27,0.00019452,2]
[330399720,1719347452999,-1705.27,0.00019452,2]
[330399721,1719347453009,-500.0,0.00019452,2]
[330399722,1719347453019,-500.0,0.00019452,2]
[330399723,1719347453029,-755.88,0.00019452,2]
[330399724,1719347453039,-618.11015197,0.00019452,2]
[330399725,1719347453049,-500.0,0.00019452,2]
[330399726,1719347453058,-649.78,0.00019452,2]
[330399727,1719347453068,-658.53,0.00019452,2]
[330399728,1719347453078,-1783.33,0.00019452,2]
[330399729,1719347453087,-500.0,0.00019452,2]
[330399730,1719347453097,-544.78,0.00019452,2]
[330399731,1719347453107,-500.0,0.00019452,2]
[330399732,1719347453116,-613.84,0.00019452,2]
[330399733,1719347453126,-1616.54,0.00019452,2]
[330399734,1719347453136,-3532.6,0.00019452,2]
[330399735,1719347453148,-866.73,0.00019452,2]
[330399736,1719347453157,-500.0,0.00019452,2]
[330399737,1719347453167,-500.0,0.00019452,2]
[330399738,1719347453176,-711.93,0.00019452,2]
[330399739,1719347453185,-500.0,0.00019452,2]
[330399740,1719347453195,-1039.92,0.00019452,2]
[330399741,1719347453205,-504.22,0.00019452,2]
[330399742,1719347453215,-1336.38,0.00019452,2]
[330399743,1719347453225,-1085.67,0.00019452,2]
[330399744,1719347453235,-945.94,0.00019452,2]
[330399745,1719347453244,-500.0,0.00019452,2]
[330399746,1719347453254,-500.0,0.00019452,2]
[330399747,1719347453264,-1115.75,0.00019452,2]
[330399748,1719347453274,-500.0,0.00019452,2]
[330399749,1719347453284,-638.82,0.00019452,2]
[330399750,1719347453293,-1134.1,0.00019452,2]
[330399751,1719347453303,-500.0,0.00019452,2]
[330399752,1719347453316,-562.09498367,0.00019452,2]
[330399753,1719347453326,-1477.42,0.00019452,2]
[330399754,1719347453336,-500.0,0.00019452,2]
[330399755,1719347453346,-766.59,0.00019452,2]
[330399756,1719347453356,-550.2,0.00019452,2]
[330399757,1719347453366,-500.0,0.00019452,2]
[330399758,1719347453376,-500.0,0.00019452,2]
[330399759,1719347453386,-564.37997023,0.00019452,2]
[330399760,1719347453400,-1163.59,0.00019452,2]
[330399761,1719347453409,-1505.45,0.00019452,2]
[330399762,1719347453419,-500.0,0.00019452,2]
[330399763,1719347453428,-500.0,0.00019452,2]
[330399764,1719347453438,-500.0,0.00019452,2]
[330399765,1719347453448,-1590.84,0.00019452,2]
[330399766,1719347453457,-728.95,0.00019452,2]
[330399767,1719347453466,-731.89,0.00019452,2]
[330399768,1719347453572,-500.0,0.00019452,2]
[330399769,1719347453581,-511.41,0.00019452,2]
[330399770,1719347453591,-569.35,0.00019452,2]
[330399771,1719347453600,-500.0,0.00019452,2]
[330399772,1719347453609,-500.0,0.00019452,2]
[330399773,1719347453618,-641.35,0.00019452,2]
[330399774,1719347453627,-1168.25,0.00019452,2]
[330399775,1719347453636,-529.25,0.00019452,2]
[330399776,1719347453647,-657.3,0.00019452,2]
[330399777,1719347453656,-1241.74,0.00019452,2]
[330399778,1719347453665,-500.0,0.00019452,2]
[330399779,1719347453674,-1519.82,0.00019452,2]
[330399780,1719347453683,-500.0,0.00019452,2]
[330399781,1719347453692,-799.24,0.00019452,2]
[330399782,1719347453701,-500.0,0.00019452,2]
[330399783,1719347453711,-1861.53,0.00019452,2]
[330399784,1719347453720,-638.52,0.00019452,2]
[330399785,1719347453729,-509.96,0.00019452,2]
[330399786,1719347453738,-1664.2,0.00019452,2]
[330399787,1719347453747,-1546.12,0.00019452,2]
[330399788,1719347453756,-726.25,0.00019452,2]
[330399789,1719347453766,-1163.31,0.00019452,2]
[330399790,1719347453775,-819.47,0.00019452,2]
[330399791,1719347453784,-500.0,0.00019452,2]
[330399792,1719347453793,-500.0,0.00019452,2]
[330399793,1719347453802,-618.33,0.00019452,2]
[330399794,1719347453811,-500.0,0.00019452,2]
[330399795,1719347453821,-1083.25,0.00019452,2]
[330399796,1719347453830,-500.0,0.00019452,2]
[330399797,1719347453839,-500.0,0.00019452,2]
[330399798,1719347453848,-500.0,0.00019452,2]
[330399799,1719347453857,-500.0,0.00019452,2]
[330399800,1719347453868,-500.0,0.00019452,2]
[330399801,1719347453878,-2198.04,0.00019452,2]
[330399802,1719347453890,-1803.83,0.00019452,2]
[330399803,1719347453900,-1577.01,0.00019452,2]
[330399804,1719347453909,-500.0,0.00019452,2]
[330399805,1719347453919,-500.0,0.00019452,2]
[330399806,1719347453929,-500.0,0.00019452,2]
[330399807,1719347453938,-1020.79,0.00019452,2]
[330399808,1719347453947,-500.0,0.00019452,2]
[330399809,1719347453956,-500.0,0.00019452,2]
[330399810,1719347453966,-890.63,0.00019452,2]
[330399811,1719347453975,-1254.69,0.00019452,2]
[330399812,1719347453983,-745.19,0.00019452,2]
[330399813,1719347453992,-513.59,0.00019452,2]
[330399814,1719347454001,-2560.66,0.00019452,2]
[330399815,1719347454011,-500.0,0.00019452,2]
[330399816,1719347454020,-339.69172911,0.00019452,2]
[330399817,1719347454030,-665.75,0.00019452,2]
[330399818,1719347454039,-500.0,0.00019452,2]
[330399819,1719347454048,-500.0,0.00019452,2]
[330399820,1719347454057,-1142.26,0.00019452,2]
[330399821,1719347454066,-500.0,0.00019452,2]
[330399822,1719347454075,-951.26,0.00019452,2]
[330399823,1719347454084,-515.52,0.00019452,2]
[330399824,1719347454094,-1317.2,0.00019452,2]
[330399825,1719347454104,-500.0,0.00019452,2]
[330399826,1719347454113,-500.0,0.00019452,2]
[330399827,1719347454123,-381.53695675,0.00019452,2]
[330399828,1719347454132,-500.0,0.00019452,2]
[330399829,1719347454142,-841.61,0.00019452,2]
[330399830,1719347454151,-500.0,0.00019452,2]
[330399831,1719347454161,-692.33,0.00019452,2]
[330399832,1719347454171,-500.0,0.00019452,2]
[330399833,1719347454181,-697.96,0.00019452,2]
[330399834,1719347454191,-1589.32,0.00019452,2]
[330399835,1719347454200,-696.78,0.00019452,2]
[330399836,1719347454209,-647.85,0.00019452,2]
[330399837,1719347454218,-500.0,0.00019452,2]
[330399838,1719347454228,-500.0,0.00019452,2]
[330399839,1719347454237,-910.05,0.00019452,2]
[330399840,1719347454247,-500.0,0.00019452,2]
[330399841,1719347454256,-14297.98,0.00019452,2]
[330399842,1719347454265,-500.0,0.00019452,2]
[330399843,1719347454274,-504.8,0.00019452,2]
[330399844,1719347454283,-1267.89,0.00019452,2]
[330399845,1719347454294,-500.0,0.00019452,2]
[330399846,1719347454303,-503.0,0.00019452,2]
[330399847,1719347454318,-2785.25,0.00019452,2]
[330399848,1719347454327,-771.94,0.00019452,2]
[330399849,1719347454337,-502.9,0.00019452,2]
[330399850,1719347454349,-741.23,0.00019452,2]
[330399851,1719347454358,-2052.23,0.00019452,2]
[330399852,1719347454368,-980.44,0.00019452,2]
[330399853,1719347454378,-500.0,0.00019452,2]
[330399854,1719347454389,-878.87,0.00019452,2]
[330399855,1719347454399,-940.94,0.00019452,2]
[330399856,1719347454409,-1229.87,0.00019452,2]
[330399857,1719347454419,-1071.02,0.00019452,2]
[330399858,1719347454429,-1227.68,0.00019452,2]
[330399859,1719347454442,-500.0,0.00019452,2]
[330399860,1719347454452,-500.0,0.00019452,2]
[330399861,1719347454462,-500.0,0.00019452,2]
[330399862,1719347454472,-570.49,0.00019452,2]
[330399863,1719347454482,-500.0,0.00019452,2]
[330399864,1719347454492,-516.4,0.00019452,2]
[330399865,1719347454501,-500.0,0.00019452,2]
[330399866,1719347454511,-500.0,0.00019452,2]
[330399867,1719347454520,-792.7,0.00019452,2]
[330399868,1719347454529,-1136.59,0.00019452,2]
[330399869,1719347454539,-974.71,0.00019452,2]
[330399870,1719347454548,-1180.21,0.00019452,2]
[330399871,1719347454557,-689.36,0.00019452,2]
[330399872,1719347454566,-658.15,0.00019452,2]
[330399873,1719347454576,-208.5388129,0.00019452,2]
[330399874,1719347454585,-500.0,0.00019452,2]
[330399875,1719347454595,-1185.19,0.00019452,2]
[330399876,1719347454604,-1307.58,0.00019452,2]
[330399877,1719347454614,-1337.53,0.00019452,2]
[330399878,1719347454623,-2148.04,0.00019452,2]
[330399879,1719347454632,-6727.52,0.00019452,2]
[330399880,1719347454643,-500.0,0.00019452,2]
[330399881,1719347454652,-517.7,0.00019452,2]
[330399882,1719347454662,-507.46,0.00019452,2]
[330399883,1719347454671,-986.05,0.00019452,2]
[330399884,1719347454680,-1081.05,0.00019452,2]
[330399885,1719347454690,-500.0,0.00019452,2]
[330399886,1719347454701,-500.0,0.00019452,2]
[330399887,1719347454710,-500.0,0.00019452,2]
[330399888,1719347454720,-605.32,0.00019452,2]
[330399889,1719347454729,-500.0,0.00019452,2]
[330399890,1719347454739,-1964.62,0.00019452,2]
[330399891,1719347454749,-592.28,0.00019452,2]
[330399892,1719347454759,-1269.81,0.00019452,2]
[330399893,1719347454768,-816.85,0.00019452,2]
[330399894,1719347454778,-932.99,0.00019452,2]
[330399895,1719347454787,-617.1,0.00019452,2]
[330399896,1719347454796,-580.84,0.00019452,2]
[330399897,1719347454805,-500.0,0.00019452,2]
[330399898,1719347454815,-1749.8,0.00019452,2]
[330399899,1719347454825,-2489.9,0.00019452,2]
[330399900,1719347454834,-500.0,0.00019452,2]
[330399901,1719347454844,-1210.01,0.00019452,2]
[330399902,1719347454854,-653.91,0.00019452,2]
[330399903,1719347454866,-500.0,0.00019452,2]
[330399904,1719347454876,-350.31373825,0.00019452,2]
[330399905,1719347454886,-3184.21,0.00019452,2]
[330399906,1719347454898,-901.41,0.00019452,2]
[330399907,1719347454907,-500.0,0.00019452,2]
[330399908,1719347454916,-1057.08,0.00019452,2]
[330399909,1719347454925,-914.13,0.00019452,2]
[330399910,1719347454937,-500.0,0.00019452,2]
[330399911,1719347454946,-500.0,0.00019452,2]
[330399912,1719347454956,-762.62,0.00019452,2]
[330399913,1719347454965,-500.0,0.00019452,2]
[330399914,1719347454974,-817.13,0.00019452,2]
[330399915,1719347454983,-500.0,0.00019452,2]
[330399916,1719347454993,-1060.62,0.00019452,2]
[330399917,1719347455004,-500.0,0.00019452,2]
[330399918,1719347455013,-500.0,0.00019452,2]
[330399919,1719347455022,-1418.03,0.00019452,2]
[330399920,1719347455032,-500.0,0.00019452,2]
[330399921,1719347455042,-4720.88,0.00019452,2]
[330399922,1719347455051,-500.0,0.00019452,2]
[330399923,1719347455061,-500.0,0.00019452,2]
[330399924,1719347455070,-500.0,0.00019452,2]
[330399925,1719347455080,-3010.75,0.00019452,2]
[330399926,1719347455089,-500.0,0.00019452,2]
[330399927,1719347455099,-500.0,0.00019452,2]
[330399928,1719347455108,-1257.9,0.00019452,2]
[330399929,1719347455117,-500.0,0.00019452,2]
[330399930,1719347455126,-490.85972125,0.00019452,2]
[330399931,1719347455135,-500.0,0.00019452,2]
[330399932,1719347455148,-523.01,0.00019452,2]
[330399933,1719347455158,-858.39,0.00019452,2]
[330399934,1719347455168,-3372.7,0.00019452,2]
[330399935,1719347455180,-2936.53,0.00019452,2]
[330399936,1719347455190,-646.46,0.00019452,2]
[330399937,1719347455199,-500.0,0.00019452,2]
[330399938,1719347455209,-500.0,0.00019452,2]
[330399939,1719347455218,-500.0,0.00019452,2]
[330399940,1719347455228,-2073.94,0.00019452,2]
[330399941,1719347455238,-500.0,0.00019452,2]
[330399942,1719347455248,-1089.56,0.00019452,2]
[330399943,1719347455259,-793.33,0.00019452,2]
[330399944,1719347455269,-500.0,0.00019452,2]
[330399945,1719347455278,-500.0,0.00019452,2]
[330399946,1719347455289,-1175.4,0.00019452,2]
[330399947,1719347455298,-775.38,0.00019452,2]
[330399948,1719347455309,-503.99,0.00019452,2]
[330399949,1719347455320,-500.0,0.00019452,2]
[330399950,1719347455330,-1330.34,0.00019452,2]
[330399951,1719347455339,-4427.24,0.00019452,2]
[330399952,1719347455349,-1275.4,0.00019452,2]
[330399953,1719347455359,-523.89,0.00019452,2]
[330399954,1719347455368,-615.85,0.00019452,2]
[330399955,1719347455377,-667.1,0.00019452,2]
[330399956,1719347455388,-1062.37,0.00019452,2]
[330399957,1719347455404,-585.09,0.00019452,2]
[330399958,1719347455413,-873.14,0.00019452,2]
[330399959,1719347455423,-6811.86,0.00019452,2]
[330399960,1719347455434,-737.7,0.00019452,2]
[330399961,1719347455444,-1785.92,0.00019452,2]
[330399962,1719347455454,-500.0,0.00019452,2]
[330399963,1719347455464,-866.35,0.00019452,2]
[330399964,1719347455475,-500.0,0.00019452,2]
[330399965,1719347455485,-2060.25,0.00019452,2]
[330399966,1719347455494,-2114.52,0.00019452,2]
[330399967,1719347455504,-500.0,0.00019452,2]
[330399968,1719347455514,-965.58,0.00019452,2]
[330399969,1719347455523,-500.0,0.00019452,2]
[330399970,1719347455533,-2388.95,0.00019452,2]
[330399971,1719347455543,-3152.6,0.00019452,2]
[330399972,1719347455552,-500.0,0.00019452,2]
[330399973,1719347455563,-1401.37,0.00019452,2]
[330399974,1719347455573,-500.0,0.00019452,2]
[330399975,1719347455583,-814.37,0.00019452,2]
[330399976,1719347455593,-500.0,0.00019452,2]
[330399977,1719347455603,-611.11,0.00019452,2]
[330399978,1719347455612,-500.0,0.00019452,2]
[330399979,1719347455622,-500.0,0.00019452,2]
[330399980,1719347455631,-1325.45,0.00019452,2]
[330399981,1719347455644,-500.0,0.00019452,2]
[330399982,1719347455655,-2113.68,0.00019452,2]
[330399983,1719347455664,-500.0,0.00019452,2]
[330399984,1719347455673,-1169.79,0.00019452,2]
[330399985,1719347455683,-14941.89,0.00019452,2]
[330399986,1719347455692,-701.99,0.00019452,2]
[330399987,1719347455702,-947.61,0.00019452,2]
[330399988,1719347455711,-500.0,0.00019452,2]
[330399989,1719347455721,-692.42,0.00019452,2]
[330399990,1719347455731,-569.17,0.00019452,2]
[330399991,1719347455740,-1389.62,0.00019452,2]
[330399992,1719347455749,-2033.5,0.00019452,2]
[330399993,1719347455758,-500.0,0.00019452,2]
[330399994,1719347455768,-1145.97,0.00019452,2]
[330399995,1719347455778,-560.05,0.00019452,2]
[330399996,1719347455787,-500.0,0.00019452,2]
[330399997,1719347455797,-6868.63,0.00019452,2]
[330399998,1719347455806,-3137.7,0.00019452,2]
[330399999,1719347455815,-500.0,0.00019452,2]
[330400000,1719347455825,-579.28,0.00019452,2]
[330400001,1719347455836,-923.7,0.00019452,2]
[330400002,1719347455845,-546.47,0.00019452,2]
[330400003,1719347455856,-500.0,0.00019452,2]
[330400004,1719347455865,-2401.39,0.00019452,2]
[330400005,1719347455875,-569.27,0.00019452,2]
[330400006,1719347455885,-1140.3,0.00019452,2]
[330400007,1719347455896,-625.02,0.00019452,2]
[330400008,1719347455906,-500.0,0.00019452,2]
[330400009,1719347455915,-7131.7,0.00019452,2]
[330400010,1719347455924,-2052.2,0.00019452,2]
[330400011,1719347455933,-500.0,0.00019452,2]
[330400012,1719347455944,-21158.5,0.00019452,2]
[330400013,1719347455953,-500.0,0.00019452,2]
[330400014,1719347455963,-10564.0,0.00019452,2]
[330400015,1719347455976,-599.18,0.00019452,2]
[330400016,1719347455986,-500.0,0.00019452,2]
[330400017,1719347455996,-500.0,0.00019452,2]
[330400018,1719347456005,-210.19848205,0.00019452,2]
[330400019,1719347456015,-3252.78,0.00019452,2]
[330400020,1719347456025,-961.03,0.00019452,2]
[330400021,1719347456034,-500.0,0.00019452,2]
[330400022,1719347456044,-500.0,0.00019452,2]
[330400023,1719347456053,-570.86,0.00019452,2]
[330400024,1719347456063,-780.33,0.00019452,2]
[330400025,1719347456072,-500.0,0.00019452,2]
[330400026,1719347456081,-584.2,0.00019452,2]
[330400027,1719347456091,-500.0,0.00019452,2]
[330400028,1719347456101,-1320.82,0.00019452,2]
[330400029,1719347456110,-1277.4,0.00019452,2]
[330400030,1719347456119,-710.31,0.00019452,2]
[330400031,1719347456129,-2358.42,0.00019452,2]
[330400032,1719347456139,-1148.87,0.00019452,2]
[330400033,1719347456149,-500.0,0.00019452,2]
[330400034,1719347456159,-500.0,0.00019452,2]
[330400035,1719347456168,-22234.45,0.00019452,2]
[330400036,1719347456178,-822.95,0.00019452,2]
[330400037,1719347456187,-2867.46,0.00019452,2]
[330400038,1719347456196,-4074.6,0.00019452,2]
[330400039,1719347456206,-736.14,0.00019452,2]
[330400040,1719347456215,-10572.14370347,0.00019452,2]
[330400041,1719347456268,-2356.43045917,0.00019452,2]
[330400042,1719347456281,-440.29978316,0.00019452,2]
[330400043,1719347456292,-2910.55810647,0.00019452,2]
[330400044,1719347456303,-890.2,0.00019452,2]
[330400045,1719347456881,-1898.23381044,0.00019452,2]
[330400046,1719347456893,-3310.12413729,0.00019452,2]
[330400047,1719347456902,-531.9,0.00019452,2]
[330400048,1719347456911,-1589.8,0.00019452,2]
[330400049,1719347456921,-500.0,0.00019452,2]
[330400050,1719347456929,-500.0,0.00019452,2]
[330400051,1719347456939,-3742.16,0.00019452,2]
[330400052,1719347456948,-1374.41,0.00019452,2]
[330400053,1719347456957,-500.0,0.00019452,2]
[330400054,1719347456966,-1219.92,0.00019452,2]
[330400055,1719347456976,-500.0,0.00019452,2]
[330400056,1719347456986,-500.0,0.00019452,2]
[330400057,1719347456995,-500.0,0.00019452,2]
[330400058,1719347457004,-500.0,0.00019452,2]
[330400059,1719347457014,-1744.78,0.00019452,2]
[330400060,1719347457023,-1070.07,0.00019452,2]
[330400061,1719347457033,-1657.0,0.00019452,2]
[330400062,1719347457042,-23351.61,0.00019452,2]
[330400063,1719347457051,-720.28,0.00019452,2]
[330400064,1719347457061,-500.0,0.00019452,2]
[330400065,1719347457070,-500.0,0.00019452,2]
[330400066,1719347457079,-516.75,0.00019452,2]
[330400067,1719347457089,-616.75,0.00019452,2]
[330400068,1719347457098,-1414.45,0.00019452,2]
[330400069,1719347457107,-645.02,0.00019452,2]
[330400070,1719347457117,-446.70893834,0.00019452,2]
[330400071,1719347457131,-157.74106166,0.00019452,2]
[330400072,1719347457140,-1505.93776556,0.00019452,2]
[330400073,1719347457152,-324.21262298,0.00019452,2]
[330400074,1719347457164,-539.13961146,0.00019452,2]
[330400075,1719347457173,-500.0,0.00019452,2]
[330400076,1719347457182,-500.0,0.00019452,2]
[330400077,1719347457192,-1946.9,0.00019452,2]
[330400078,1719347457201,-2910.04,0.00019452,2]
[330400079,1719347457211,-1540.95,0.00019452,2]
[330400080,1719347457346,-1343.29392325,0.00019452,2]
[330400081,1719347457370,-560.00607675,0.00019452,2]
[330400082,1719347457380,-4926.42,0.00019452,2]
[330400083,1719347457395,-500.0,0.00019452,2]
[330400084,1719347457404,-988.5,0.00019452,2]
[330400085,1719347457413,-500.0,0.00019452,2]
[330400086,1719347457423,-540.71,0.00019452,2]
[330400087,1719347457433,-500.0,0.00019452,2]
[330400088,1719347457442,-1067.64,0.00019452,2]
[330400089,1719347457452,-1422.49,0.00019452,2]
[330400090,1719347457462,-915.24,0.00019452,2]
[330400091,1719347457471,-1238.82,0.00019452,2]
[330400092,1719347457481,-500.0,0.00019452,2]
[330400093,1719347457491,-1819.39,0.00019452,2]
[330400094,1719347457500,-678.7,0.00019452,2]
[330400095,1719347457509,-500.0,0.00019452,2]
[330400096,1719347457519,-500.0,0.00019452,2]